bitfinex/quotes_SOLUSD_20230702
["timestamp","ask_amount","ask_price","bid_price","bid_amount"]
[1688276004818,22.195,19.058,19.04,124.034]
[1688276005019,22.195,19.058,19.042,10.83719922]
[1688276005817,22.195,19.058,19.047,22.207]
[1688276006236,44.402,19.058,19.047,22.207]
[1688276007224,44.402,19.058,19.043,94.6179]
[1688276007621,44.402,19.058,19.047,10.83719922]
[1688276007824,44.402,19.058,19.047,33.04519922]
[1688276008322,22.195,19.058,19.048,10.83719922]
[1688276008525,22.195,19.058,19.048,33.04319922]
[1688276012427,79.336,19.058,19.048,10.83719922]
[1688276013017,79.336,19.058,19.046,22.209]
[1688276013422,79.336,19.058,19.044,10.83719922]
[1688276014530,79.336,19.058,19.046,22.209]
[1688276018346,79.336,19.058,19.046,33.04619922]
[1688276018635,22.195,19.058,19.046,33.04619922]
[1688276019938,22.195,19.058,19.05,22.204]
[1688276020613,22.195,19.058,19.049,22.204]
[1688276022236,22.195,19.058,19.047,22.207]
[1688276024420,22.195,19.058,19.047,22.208]
[1688276024833,22.195,19.058,19.046,10.83719922]
[1688276024834,22.195,19.058,19.046,33.04519922]
[1688276028649,22.195,19.058,19.046,10.83719922]
[1688276028847,22.195,19.058,19.044,22.211]
[1688276029232,22.195,19.058,19.045,10.83719922]
[1688276029543,22.195,19.058,19.046,55.0]
[1688276029949,22.195,19.058,19.047,10.83719922]
[1688276030123,22.195,19.058,19.048,22.206]
[1688276030526,22.195,19.058,19.047,10.83719922]
[1688276032943,22.195,19.058,19.047,33.04419922]
[1688276034744,22.195,19.058,19.047,10.83719922]
[1688276036753,22.195,19.058,19.047,33.04419922]
[1688276042835,22.192,19.061,19.048,75.0]
[1688276043036,22.192,19.061,19.051,79.361]
[1688276043237,57.119,19.066,19.052,96.9215]
[1688276043436,22.191,19.061,19.053,3.94201083]
[1688276043638,22.191,19.061,19.053,22.2]
[1688276045951,22.19,19.062,19.053,22.2]
[1688276046258,22.191,19.062,19.053,22.2]
[1688276046857,22.19,19.063,19.053,22.2]
[1688276049655,22.189,19.063,19.053,22.2]
[1688276051844,79.315,19.063,19.052,96.9215]
[1688276052142,22.189,19.063,19.053,22.2]
[1688276052345,22.189,19.063,19.051,25.68699771]
[1688276052553,22.189,19.063,19.053,22.201]
[1688276053644,22.189,19.063,19.051,98.1026]
[1688276053860,22.189,19.063,19.052,22.201]
[1688276054451,22.189,19.063,19.051,98.1026]
[1688276054856,22.189,19.063,19.052,22.201]
[1688276056568,55.0,19.062,19.043,57.185]
[1688276056768,79.343,19.057,19.045,22.209]
[1688276059959,79.343,19.057,19.044,22.211]
[1688276060165,22.201,19.053,19.044,22.211]
[1688276066074,22.201,19.053,19.042,22.213]
[1688276070555,22.208,19.047,19.039,22.216]
[1688276070850,22.208,19.047,19.03,416.39]
[1688276070851,22.208,19.047,19.031,151.9634]
[1688276071055,22.213,19.043,19.034,22.222]
[1688276072170,22.213,19.043,19.033,22.223]
[1688276072468,22.213,19.043,19.027,57.233]
[1688276072469,79.396,19.043,19.027,57.233]
[1688276072664,79.396,19.043,19.028,20.0]
[1688276072976,79.396,19.043,19.032,22.225]
[1688276074472,79.396,19.043,19.028,20.0]
[1688276074676,79.396,19.043,19.026,97.1953]
[1688276074677,55.0,19.042,19.03,22.227]
[1688276074858,22.218,19.039,19.03,22.227]
[1688276075260,22.217,19.039,19.03,22.227]
[1688276077074,269.61473873,19.07,19.031,55.0]
[1688276077075,22.21,19.045,19.031,55.0]
[1688276077272,57.163,19.051,19.035,79.43]
[1688276077664,22.211,19.045,19.036,2.86707238]
[1688276077866,22.211,19.045,19.037,22.218]
[1688276078668,22.211,19.045,19.03,76.924]
[1688276078871,22.211,19.045,19.031,1.21065234]
[1688276079071,22.211,19.045,19.031,56.21065234]
[1688276079274,22.211,19.045,19.037,22.219]
[1688276079773,22.21,19.047,19.037,22.219]
[1688276079976,22.21,19.046,19.037,22.219]
[1688276086363,161.44,19.054,19.038,75.0]
[1688276086664,22.207,19.049,19.041,22.214]
[1688276089585,22.207,19.049,19.039,22.216]
[1688276090068,22.207,19.049,19.033,4.68122893]
[1688276090263,22.207,19.049,19.033,30.90166751]
[1688276090481,22.207,19.049,19.035,22.222]
[1688276091270,22.207,19.049,19.032,91.4024]
[1688276091482,22.207,19.049,19.035,22.221]
[1688276098887,22.207,19.049,19.036,1.13049531]
[1688276099088,22.207,19.049,19.037,22.219]
[1688276102985,22.207,19.049,19.032,91.4024]
[1688276103200,22.207,19.049,19.033,2.94759637]
[1688276103578,22.207,19.049,19.033,25.17059637]
[1688276105091,22.207,19.049,19.033,79.439]
[1688276105289,22.207,19.049,19.034,2.02693082]
[1688276105489,22.207,19.049,19.038,22.218]
[1688276105985,22.207,19.049,19.038,22.217]
[1688276106194,22.207,19.049,19.033,1.89242694]
[1688276107794,22.207,19.049,19.036,22.22]
[1688276109093,22.207,19.049,19.036,21.72]
[1688276110382,22.207,19.049,19.032,91.4024]
[1688276110583,55.0,19.048,19.033,2.7596444]
[1688276110881,79.396,19.044,19.032,91.4024]
[1688276111084,55.0,19.043,19.03,22.227]
[1688276111389,79.414,19.04,19.026,22.231]
[1688276111587,79.414,19.04,19.027,42.231]
[1688276115497,99.044,19.04,19.027,42.231]
[1688276115700,55.0,19.039,19.022,99.5884]
[1688276115895,183.821,19.035,19.023,22.236]
[1688276116096,22.222,19.035,19.023,22.236]
[1688276118186,42.231,19.041,19.023,126.688]
[1688276118382,42.231,19.041,19.024,4.95012316]
[1688276118586,22.22,19.037,19.029,22.229]
[1688276119300,22.22,19.037,19.022,99.5884]
[1688276119502,22.22,19.037,19.025,22.232]
[1688276120099,22.22,19.037,19.026,55.0]
[1688276120296,22.22,19.037,19.029,22.228]
[1688276120600,22.22,19.037,19.028,22.229]
[1688276120788,22.22,19.037,19.027,22.23]
[1688276121184,22.22,19.037,19.022,156.8354]
[1688276121397,21.69468,19.037,19.027,22.231]
[1688276123608,21.69468,19.037,19.026,22.232]
[1688276124302,21.69468,19.037,19.022,125.48680035]
[1688276124699,21.69468,19.037,19.022,99.5884]
[1688276124905,79.445,19.032,19.022,121.8244]
[1688276125296,79.445,19.032,19.022,121.8254]
[1688276125497,79.445,19.032,19.016,26.7877107]
[1688276125802,79.445,19.032,19.004,26.97959069]
[1688276125803,19.7,19.03,19.011,4.63601589]
[1688276125996,19.7,19.03,19.008,22.253]
[1688276125997,183.921,19.025,19.008,22.253]
[1688276126306,75.0,19.024,19.007,93.1144]
[1688276126511,79.499,19.019,19.007,115.3674]
[1688276127204,22.241,19.019,19.004,26.95041521]
[1688276127406,22.241,19.019,19.001,93.1144]
[1688276127605,22.241,19.019,19.004,22.258]
[1688276128515,22.238,19.022,19.004,22.258]
[1688276128809,22.237,19.023,19.01,19.74]
[1688276129005,98.6,19.04,19.013,22.246]
[1688276129006,57.223,19.031,19.013,22.246]
[1688276129209,57.223,19.031,19.014,145.0608]
[1688276129502,22.232,19.027,19.018,22.24]
[1688276129697,104.397,19.031,19.018,22.24]
[1688276129896,104.397,19.031,19.011,57.28]
[1688276129897,126.642,19.03,19.011,57.28]
[1688276130095,79.453,19.03,19.018,22.242]
[1688276130414,22.228,19.03,19.018,22.241]
[1688276130914,104.397,19.031,19.018,22.241]
[1688276131097,22.228,19.03,19.018,22.241]
[1688276131292,104.397,19.031,19.018,22.241]
[1688276131596,126.624,19.031,19.018,22.241]
[1688276132107,104.397,19.031,19.018,22.241]
[1688276132310,126.624,19.031,19.018,22.241]
[1688276133595,22.232,19.027,19.018,22.241]
[1688276134803,55.0,19.026,19.016,22.244]
[1688276135009,22.236,19.023,19.014,22.246]
[1688276135207,75.0,19.022,19.005,57.298]
[1688276135515,22.243,19.017,19.01,22.25]
[1688276136098,22.243,19.017,19.001,92.4775]
[1688276136309,55.0,19.016,19.004,22.257]
[1688276136597,22.248,19.013,18.997,25.86249982]
[1688276136917,22.254,19.008,19.002,22.26]
[1688276137111,22.254,19.008,18.996,57.325]
[1688276137318,22.254,19.008,18.978,396.8]
[1688276137319,55.0,19.007,18.978,396.8]
[1688276137615,55.0,19.007,18.987,22.278]
[1688276137616,22.261,19.002,18.987,22.278]
[1688276137813,22.261,19.002,18.98,78.96]
[1688276138020,22.261,19.002,18.987,22.278]
[1688276138310,22.261,19.002,18.98,78.96]
[1688276138724,22.261,19.002,18.98,157.92]
[1688276139319,19.74,19.0,18.97,98.62]
[1688276139505,22.271,18.993,18.981,22.284]
[1688276139812,22.271,18.993,18.98,130.73797141]
[1688276139813,22.27,18.995,18.987,22.278]
[1688276140113,104.538,19.008,18.987,22.278]
[1688276140903,22.263,19.0,18.987,22.278]
[1688276141403,22.263,19.0,18.98,19.8]
[1688276141715,22.263,19.0,18.987,22.277]
[1688276141716,79.596,18.996,18.987,22.277]
[1688276142312,22.264,19.0,18.987,22.277]
[1688276142520,22.264,19.0,18.991,22.273]
[1688276142817,48.578056,19.0,18.991,22.273]
[1688276143514,26.314056,19.0,18.991,22.273]
[1688276143705,22.263,19.0,18.991,22.273]
[1688276145015,22.261,19.002,18.991,22.273]
[1688276147311,79.566,19.002,18.991,22.273]
[1688276150215,57.305,19.002,18.991,22.273]
[1688276150414,22.26,19.003,18.991,22.273]
[1688276150624,22.26,19.002,18.991,22.273]
[1688276150922,79.555,19.003,18.991,17.773]
[1688276151125,22.26,19.002,18.991,17.773]
[1688276151508,79.555,19.003,18.991,17.773]
[1688276152008,57.287,19.01,18.991,17.773]
[1688276152207,22.255,19.007,18.992,55.0]
[1688276152409,39.59,19.02,19.0,184.155]
[1688276152410,57.26,19.019,19.0,184.155]
[1688276152609,22.247,19.014,19.0,79.577]
[1688276152924,22.247,19.014,19.001,92.9907]
[1688276153117,22.247,19.014,19.004,22.257]
[1688276153426,22.246,19.014,19.004,22.257]
[1688276160132,79.553,19.007,18.995,22.268]
[1688276160718,79.553,19.007,18.991,92.1391]
[1688276161412,79.026435,19.007,18.991,92.1391]
[1688276161612,79.026435,19.007,18.994,22.27]
[1688276161817,171.165535,19.007,18.994,22.27]
[1688276164613,171.165535,19.007,18.991,92.1391]
[1688276164614,171.165535,19.007,18.98,19.8]
[1688276164935,171.165535,19.007,18.981,118.4739]
[1688276164936,79.584,18.999,18.981,118.4739]
[1688276165133,79.584,18.999,18.971,105.376459]
[1688276165433,144.109,19.0,18.977,98.4739]
[1688276165434,79.612,18.992,18.977,98.4739]
[1688276165634,79.612,18.992,18.97,39.37]
[1688276165833,22.272,18.992,18.971,91.7122]
[1688276166219,79.611,18.992,18.971,91.7122]
[1688276166422,79.611,18.992,18.97,65.9109742]
[1688276166626,79.611,18.992,18.97,46.2709742]
[1688276167017,145.521974,18.992,18.971,91.7122]
[1688276167626,145.521974,18.992,18.977,79.674]
[1688276167930,145.521974,18.992,18.977,22.289]
[1688276168317,88.182974,18.992,18.977,22.289]
[1688276168529,88.182974,18.992,18.978,20.0]
[1688276168734,88.182974,18.992,18.982,22.284]
[1688276169615,22.272,18.993,18.982,22.284]
[1688276170131,110.452974,18.994,18.982,22.284]
[1688276173627,88.182974,18.994,18.982,22.284]
[1688276174626,110.453974,18.994,18.982,22.284]
[1688276175334,57.291,19.009,18.982,22.284]
[1688276175520,57.291,19.009,18.99,184.245]
[1688276175935,22.257,19.005,18.99,184.245]
[1688276176640,22.257,19.005,18.99,22.273]
[1688276179244,75.0,19.004,18.99,22.273]
[1688276179441,22.263,19.0,18.99,22.273]
[1688276184138,104.538,19.008,18.99,126.907]
[1688276184942,22.26,19.003,18.99,126.907]
[1688276190335,22.26,19.003,18.99,22.273]
[1688276193153,22.26,19.003,18.99,22.274]
[1688276193325,22.26,19.003,18.991,22.272]
[1688276194245,22.26,19.003,18.99,22.274]
[1688276194442,22.265,18.999,18.99,22.274]
[1688276194650,22.265,18.999,18.984,57.363]
[1688276194833,22.265,18.999,18.985,22.28]
[1688276195029,22.265,18.999,18.98,19.8]
[1688276195229,22.265,18.999,18.986,22.279]
[1688276196140,79.583,18.999,18.986,22.279]
[1688276197339,79.583,18.999,18.983,57.366]
[1688276197340,79.583,18.999,18.976,151.9064]
[1688276197540,55.0,18.998,18.977,22.20428742]
[1688276197743,79.612,18.992,18.982,22.283]
[1688276198249,79.612,18.992,18.981,22.284]
[1688276199047,22.272,18.992,18.981,22.284]
[1688276199434,22.271,18.994,18.981,22.284]
[1688276199750,22.27,18.995,18.981,22.284]
[1688276199948,57.304,19.004,18.982,20.0]
[1688276200253,22.264,19.0,18.988,79.626]
[1688276200548,22.261,19.002,18.992,22.272]
[1688276200759,22.259,19.003,18.992,22.272]
[1688276200947,22.26,19.002,18.992,22.272]
[1688276203133,22.259,19.004,18.992,22.272]
[1688276203848,57.287,19.01,18.992,22.272]
[1688276203849,22.258,19.005,18.992,22.272]
[1688276205457,39.73,19.02,18.993,75.0]
[1688276205458,104.499,19.015,18.993,75.0]
[1688276205748,22.254,19.008,18.999,22.263]
[1688276205942,22.253,19.009,18.999,22.263]
[1688276207045,179.499,19.015,18.999,22.263]
[1688276207046,22.25,19.011,18.999,22.263]
[1688276207253,75.0,19.015,18.999,22.263]
[1688276208752,22.25,19.012,18.999,22.263]
[1688276209049,22.25,19.012,18.999,121.6639]
[1688276209749,75.0,19.015,18.999,121.6639]
[1688276210139,22.249,19.012,18.999,121.6639]
[1688276211848,22.249,19.012,18.999,22.263]
[1688276212044,55.0,19.011,18.999,22.263]
[1688276212247,22.254,19.008,18.999,22.263]
[1688276213051,22.254,19.008,18.995,26.87774228]
[1688276213246,22.254,19.008,18.993,95.2475]
[1688276213849,22.254,19.008,18.996,22.266]
[1688276218062,22.254,19.008,18.995,22.268]
[1688276221061,22.254,19.008,18.996,55.0]
[1688276221359,22.254,19.008,18.999,22.263]
[1688276222241,22.253,19.009,18.999,79.581]
[1688276222769,22.253,19.009,18.999,22.263]
[1688276225646,22.253,19.009,18.98,39.6]
[1688276225862,19.8,19.0,18.985,22.28]
[1688276226061,79.597,18.996,18.981,97.0639]
[1688276226262,79.597,18.996,18.982,22.283]
[1688276226448,55.0,18.995,18.982,22.283]
[1688276226652,22.273,18.992,18.982,22.283]
[1688276227351,57.339,18.993,18.977,22.289]
[1688276227352,22.28,18.986,18.977,22.289]
[1688276227557,22.28,18.986,18.977,112.5678]
[1688276228561,57.339,18.994,18.977,112.5678]
[1688276228863,77.339,18.993,18.977,112.5678]
[1688276229663,57.339,18.993,18.977,22.289]
[1688276229864,22.276,18.989,18.977,22.289]
[1688276230167,22.275,18.99,18.977,22.289]
[1688276230352,22.275,18.99,18.978,20.0]
[1688276230555,57.339,18.994,18.981,22.284]
[1688276230865,57.32,18.999,18.981,22.284]
[1688276231271,57.374,18.997,18.981,22.284]
[1688276231566,22.269,18.995,18.981,22.284]
[1688276231765,22.269,18.995,18.98,77.174]
[1688276231766,22.269,18.995,18.985,79.639]
[1688276233046,57.374,18.998,18.985,79.639]
[1688276233251,22.265,18.999,18.985,79.639]
[1688276233565,22.265,18.998,18.991,22.272]
[1688276233771,22.265,18.999,18.991,22.272]
[1688276234065,57.302,19.001,18.991,22.272]
[1688276234365,161.832,19.008,18.991,22.272]
[1688276235064,22.259,19.003,18.991,22.272]
[1688276235862,22.259,19.003,18.991,113.7534]
[1688276240073,22.259,19.003,18.991,113.2534]
[1688276240877,55.0,19.002,18.991,21.772]
[1688276241076,22.264,18.999,18.99,22.273]
[1688276242164,22.264,18.999,18.99,22.274]
[1688276245277,22.264,18.999,18.986,92.0576]
[1688276245278,22.264,18.999,18.989,22.274]
[1688276245792,22.264,18.999,18.979,57.377]
[1688276245982,55.0,18.998,18.983,22.282]
[1688276246283,79.605,18.994,18.983,22.282]
[1688276246486,55.0,18.993,18.983,22.282]
[1688276246664,22.274,18.99,18.983,22.282]
[1688276247975,22.274,18.99,18.973,57.396]
[1688276248182,55.0,18.989,18.973,57.396]
[1688276248479,22.281,18.985,18.973,57.396]
[1688276249069,22.281,18.985,18.972,96.3489]
[1688276249268,22.28,18.986,18.977,22.289]
[1688276249573,22.276,18.989,18.977,22.289]
[1688276250982,22.276,18.989,18.981,22.285]
[1688276251382,22.276,18.989,18.981,21.285]
[1688276251967,22.276,18.989,18.972,122.73074338]
[1688276253301,22.276,18.989,18.977,22.29]
[1688276253583,22.276,18.989,18.974,22.292]
[1688276253883,22.276,18.989,18.973,22.294]
[1688276254061,22.276,18.989,18.975,22.291]
[1688276258882,22.276,18.989,18.976,55.0]
[1688276259083,22.276,18.989,18.979,22.286]
[1688276259378,55.0,18.992,18.979,22.286]
[1688276259583,22.275,18.99,18.979,22.286]
[1688276260473,22.275,18.99,18.975,26.53742608]
[1688276260795,22.275,18.99,18.972,122.73074338]
[1688276260796,22.275,18.99,18.974,57.393]
[1688276261366,22.275,18.99,18.979,22.287]
[1688276266792,55.0,18.992,18.979,22.287]
[1688276267480,77.272,18.992,18.979,22.287]
[1688276267682,77.272,18.992,18.979,33.12419922]
[1688276267883,78.96,19.01,18.98,30.52719922]
[1688276267884,22.265,18.998,18.98,30.52719922]
[1688276268185,22.265,18.998,18.985,22.28]
[1688276268379,20.0,18.997,18.985,22.28]
[1688276268574,22.27,18.994,18.985,22.28]
[1688276269586,79.598,18.994,18.985,22.28]
[1688276269802,79.598,18.994,18.98,92.976]
[1688276270293,184.209,18.994,18.98,92.976]
[1688276270605,19.83,18.99,18.97,19.84]
[1688276270892,19.83,18.99,18.967,57.413]
[1688276270893,22.281,18.984,18.967,57.413]
[1688276271091,75.0,18.989,18.966,22.301]
[1688276271092,79.675,18.977,18.966,22.301]
[1688276271292,79.675,18.977,18.96,26.42961238]
[1688276271593,124.522,18.98,18.95,158.55]
[1688276271594,79.71,18.969,18.952,3.66215486]
[1688276271897,79.71,18.969,18.938,3.90407815]
[1688276271898,20.0,18.968,18.938,3.90407815]
[1688276272076,20.0,18.968,18.939,21.833]
[1688276272077,184.551,18.96,18.939,21.833]
[1688276272277,79.748,18.96,18.939,21.833]
[1688276272986,105.628446,18.96,18.94,19.83]
[1688276273187,125.458446,18.96,18.946,22.326]
[1688276273497,55.0,18.959,18.946,22.326]
[1688276273695,125.458446,18.96,18.946,22.326]
[1688276274195,99.14,18.97,18.946,22.326]
[1688276274395,125.07074288,18.97,18.946,22.326]
[1688276274996,99.14,18.97,18.947,20.0]
[1688276275294,124.698,18.97,18.953,184.608]
[1688276275903,124.648,18.97,18.953,184.608]
[1688276276496,124.648,18.97,18.953,79.772]
[1688276277395,22.3,18.969,18.953,22.317]
[1688276277592,55.0,18.968,18.953,22.317]
[1688276277798,22.306,18.964,18.953,22.317]
[1688276278492,55.0,18.968,18.953,22.317]
[1688276278692,22.304,18.965,18.953,22.317]
[1688276279292,55.0,18.969,18.953,22.317]
[1688276279487,104.878,18.97,18.953,22.317]
[1688276279688,19.74,18.98,18.954,55.0]
[1688276279891,19.74,18.98,18.961,184.528]
[1688276280398,22.288,18.979,18.961,184.528]
[1688276281293,21.759989,18.979,18.961,184.528]
[1688276281484,22.294,18.973,18.961,79.739]
[1688276281678,22.294,18.973,18.961,22.308]
[1688276281875,22.294,18.973,18.947,26.92472744]
[1688276281876,19.77,18.97,18.947,26.92472744]
[1688276282078,55.0,18.969,18.946,57.477]
[1688276282279,19.77,18.96,18.943,57.486]
[1688276282480,22.316,18.955,18.946,22.325]
[1688276282899,22.316,18.955,18.941,92.299]
[1688276283195,22.316,18.955,18.931,57.521]
[1688276283399,19.83,18.95,18.932,57.52]
[1688276283697,19.83,18.95,18.931,92.299]
[1688276283698,57.446,18.956,18.936,22.337]
[1688276284001,22.318,18.954,18.936,22.337]
[1688276284294,22.318,18.954,18.941,22.331]
[1688276288285,22.318,18.954,18.942,55.0]
[1688276288482,22.315,18.956,18.945,22.327]
[1688276288699,22.315,18.956,18.946,55.0]
[1688276288902,57.429,18.963,18.949,22.323]
[1688276289084,22.311,18.959,18.949,22.323]
[1688276289602,79.75,18.959,18.946,55.0]
[1688276289787,79.75,18.959,18.947,93.5159]
[1688276290397,79.75,18.959,18.947,22.324]
[1688276290700,22.311,18.959,18.947,22.324]
[1688276291785,22.311,18.959,18.948,55.0]
[1688276291990,22.311,18.959,18.949,22.322]
[1688276292303,22.307,18.963,18.95,64.95]
[1688276292504,22.308,18.962,18.953,22.317]
[1688276293185,57.415,18.967,18.953,22.317]
[1688276293391,22.308,18.962,18.953,22.317]
[1688276298104,22.308,18.962,18.943,57.488]
[1688276298105,79.738,18.962,18.943,57.488]
[1688276298699,79.738,18.962,18.947,22.324]
[1688276301204,22.308,18.962,18.947,22.324]
[1688276301389,22.308,18.962,18.948,75.0]
[1688276301595,22.308,18.962,18.952,22.319]
[1688276302510,22.308,18.962,18.945,26.79049493]
[1688276302695,22.308,18.962,18.952,22.318]
[1688276302894,22.308,18.962,18.95,22.321]
[1688276303090,22.308,18.962,18.941,57.492]
[1688276303288,22.308,18.962,18.945,22.327]
[1688276303492,22.308,18.962,18.94,57.497]
[1688276303691,22.308,18.962,18.936,104.931]
[1688276303692,22.308,18.962,18.946,22.326]
[1688276305098,22.308,18.962,18.946,79.805]
[1688276305298,22.308,18.962,18.946,22.326]
[1688276306104,22.308,18.962,18.946,79.805]
[1688276306504,22.308,18.962,18.947,55.0]
[1688276306707,22.308,18.962,18.951,22.32]
[1688276307012,22.308,18.962,18.952,55.0]
[1688276307214,22.308,18.962,18.955,22.316]
[1688276307718,22.308,18.962,18.944,57.483]
[1688276307902,22.308,18.962,18.946,22.325]
[1688276308102,22.308,18.962,18.946,22.326]
[1688276308306,22.308,18.962,18.943,93.5641]
[1688276308307,22.308,18.962,18.944,22.328]
[1688276308513,22.308,18.962,18.94,57.496]
[1688276308707,55.0,18.961,18.94,57.496]
[1688276308918,22.316,18.955,18.944,22.328]
[1688276309405,22.315,18.956,18.944,22.328]
[1688276309816,22.314,18.957,18.944,22.328]
[1688276310014,22.313,18.958,18.944,22.328]
[1688276310317,22.313,18.958,18.945,55.0]
[1688276310521,57.426,18.963,18.948,79.795]
[1688276310810,114.856,18.963,18.948,79.795]
[1688276311915,22.311,18.959,18.948,79.795]
[1688276312312,9.91,18.97,18.948,79.795]
[1688276312501,57.418,18.966,18.948,79.795]
[1688276313114,22.311,18.96,18.948,22.323]
[1688276318422,22.309,18.961,18.948,22.323]
[1688276318624,22.309,18.961,18.949,55.0]
[1688276318920,5.8447,18.979,18.952,22.318]
[1688276318921,57.415,18.968,18.952,22.318]
[1688276319619,114.877,18.968,18.952,22.318]
[1688276319824,22.305,18.964,18.952,22.318]
[1688276320916,22.305,18.964,18.953,55.0]
[1688276321219,22.305,18.964,18.956,22.314]
[1688276331116,22.305,18.964,18.953,26.95640159]
[1688276331517,22.305,18.964,18.95,96.7658]
[1688276331815,22.305,18.964,18.95,119.0868]
[1688276332134,22.305,18.964,18.95,96.7658]
[1688276335217,22.305,18.964,18.95,119.0858]
[1688276336316,22.305,18.964,18.95,96.7658]
[1688276336939,22.305,18.964,18.95,119.0868]
[1688276337146,22.305,18.964,18.95,96.7658]
[1688276337630,22.305,18.964,18.95,119.0858]
[1688276340535,22.305,18.964,18.951,55.0]
[1688276340736,22.305,18.964,18.954,22.316]
[1688276341437,22.305,18.964,18.951,55.0]
[1688276341741,22.305,18.964,18.952,22.318]
[1688276344435,22.305,18.964,18.95,96.7658]
[1688276344638,22.305,18.964,18.95,122.77541199]
[1688276344841,22.305,18.964,18.95,145.09641199]
[1688276347527,22.305,18.964,18.95,122.77541199]
[1688276348351,22.305,18.964,18.95,145.09641199]
[1688276349935,22.305,18.964,18.95,48.33061199]
[1688276350142,22.305,18.964,18.951,150.4639]
[1688276350335,22.305,18.964,18.954,22.316]
[1688276350947,22.305,18.964,18.951,95.4639]
[1688276351246,79.729,18.964,18.952,22.318]
[1688276351431,22.305,18.964,18.952,22.318]
[1688276352649,22.305,18.964,18.953,55.0]
[1688276352963,22.305,18.964,18.956,22.314]
[1688276357155,55.0,18.969,18.956,22.314]
[1688276357453,22.305,18.964,18.956,22.314]
[1688276357837,22.305,18.964,18.951,95.4639]
[1688276358136,22.305,18.964,18.95,45.77961199]
[1688276358137,22.305,18.964,18.95,22.321]
[1688276358359,22.305,18.964,18.949,22.322]
[1688276364749,19.89,18.96,18.948,22.323]
[1688276365067,22.314,18.957,18.948,22.323]
[1688276367457,22.314,18.957,18.929,57.529]
[1688276367765,184.704,18.944,18.929,22.345]